Cogmind - Beta 13 @@@ ROGUE MODE // 2024.04.14 @ 19:33:05 Player: luckinvolved Result: Destroyed by G-47 Trooper with Particle Gun Performance ------------- Evolutions (1) 500 Regions Visited (4) 800 Robots Destroyed (29) 145 Value Destroyed (586) 586 Prototype IDs (1) 20 Alien Tech Used (0) 0 Bonus (0) 0 TOTAL SCORE: 2051 Bonus ------- None Cogmind --------- Core Integrity 0/400 Matter 211/300 Energy 280/280 System Corruption 0% Temperature Cool (9) Movement Treading (160) Location -9/Storage Parts ------- > --- POWER (1) -------- Heavy Ion Engine > --- PROPULSION (3) --- Light Treads > --- UTILITY (3) ------ Structural Scanner Visual Processing Unit Signal Interpreter > --- WEAPON (2) ------- (None) > --- INVENTORY (5) ---- Heavy Ion Engine ECM Suite Heavy Flail Heavy Flail Peak State ------------ > --- POWER ------------ Ion Engine > --- PROPULSION ------- Hover Unit Hover Unit Combat Airjet > --- UTILITY ---------- Visual Processing Unit Signal Interpreter ECM Suite > --- WEAPON ----------- Minigun Minigun > --- INVENTORY -------- Light Ion Engine Minigun Heavy Flail Heavy Flail [Rating: 19] Favorites ----------- Power Ion Engine Engine Ion Engine Propulsion Light Treads Treads Light Treads Hover Unit Hover Unit Utility Structural Scanner Device Structural Scanner Storage Small Storage Unit Processor Signal Interpreter Weapon Minigun Energy Gun Small Laser Ballistic Gun Minigun Special Weapon Mining Laser Impact Weapon Heavy Flail Build | -11 -10 -10 -9 -9 ------- Run | Yrd Mat Min Mat Sto Slots Evolved 2 | . . . 2 . Power . | . . . . . Propulsion 1 | . . . 1 . Utility 1 | . . . 1 . Weapon . | . . . . . Parts Attached 28 | 6 4 2 10 6 Power 4 | 1 1 . 1 1 Engine 4 | 1 1 . 1 1 Core . | . . . . . Reactor . | . . . . . Propulsion 9 | 2 1 1 3 2 Treads 4 | 2 1 . . 1 Leg . | . . . . . Wheel . | . . . . . Hover 5 | . . 1 3 1 Flight . | . . . . . Utility 6 | 1 1 . 2 2 Device 3 | . 1 . . 2 Storage 1 | 1 . . . . Processor 2 | . . . 2 . Hackware . | . . . . . Protection . | . . . . . Artifact . | . . . . . Weapon 9 | 2 1 1 4 1 Energy Gun 1 | 1 . . . . Energy Cannon . | . . . . . Ballistic Gun 5 | 1 . 1 2 1 Ballistic Cannon . | . . . . . Launcher . | . . . . . Special Weapon 1 | . 1 . . . Impact Weapon 2 | . . . 2 . Slashing Weapon . | . . . . . Piercing Weapon . | . . . . . Special Melee Weapon . | . . . . . Unidentified Prototypes 1 | . . . . 1 Parts Lost 11 | . 1 . 3 7 Power 1 | . . . 1 . Propulsion 5 | . . . 1 4 Utility 1 | . . . 1 . Weapon 4 | . 1 . . 3 Highest Loss Streak 4 | . 1 . 2 4 To Critical Strikes . | . . . . . Average Slot Usage (%) 81 | . 95 95 61 93 Engine 11 | . 12 14 10 11 Treads 8 | . 26 23 . . Hover 13 | . . 2 13 28 Device 10 | . 11 14 8 9 Storage 4 | . 14 11 . . Processor 8 | . . . 7 22 Energy Gun 4 | . 14 14 . . Ballistic Gun 15 | . 8 14 15 20 Impact Weapon 2 | . . . 5 . Naked Turns . | . . . . . Heaviest Build 15 | 13 14 14 12 15 Greatest Support 40 | 40 40 40 24 24 Greatest Overweight (x) 4 | 4 . . . 1 Average Overweight (x) . | . . . . . Largest Inventory Capacity 8 | 8 8 8 5 5 Average Capacity 6 | 7 8 7 5 5 Most Carried 8 | 7 8 7 5 5 Average Carried 5 | 4 7 6 4 4 Final Capacity 8 | 8 8 5 5 5 Final Carried 8 | 7 8 5 5 4 Class Distribution -------------------- 71% | Mutant 28% | Scavenger-Mutant Dominant Class ---------------- Mutant | -10/Materials Mutant | -10/Mines Mutant | -9/Materials Scavenger-Mutant | -9/Storage Resources | -11 -10 -10 -9 -9 ----------- Run | Yrd Mat Min Mat Sto Matter Collected 840 | 272 . 76 246 246 Remotely . | . . . . . Salvage Created 913 | 82 . 75 246 510 Parts 73 | 5 . 12 19 37 Haulers Intercepted 1 | . . . . 1 Recyclers Shooed . | . . . . . Parts Field Recycled . | . . . . . Retrieved Matter . | . . . . . Parts Self-Destructed . | . . . . . Prevented . | . . . . . Kills | -11 -10 -10 -9 -9 ------- Run | Yrd Mat Min Mat Sto Combat Hostiles Destroyed 20 | . . 6 6 8 Melee 1 | . . . 1 . Guns 19 | . . 6 5 8 Classes Destroyed 9 | 2 . 1 5 1 Builder 3 | . . . 1 2 Tunneler 1 | 1 . . . . Hauler 1 | . . . . 1 Recycler 1 | 1 . . . . Operator 2 | . . . 1 1 Watcher 1 | . . . 1 . Swarmer 9 | . . 6 3 . Grunt 7 | . . . 2 5 Sentry 4 | . . . 1 3 Best Kill Streak 7 | 2 . 3 2 7 Combat Bots Only 4 | . . 3 2 4 Max Kills in Single Turn 2 | 1 . 2 1 1 Gunslinging 1 | . . 1 . . Exploded . | . . . . . Melee 1 | . . . 1 . Uniques/NPCs Destroyed . | . . . . . Combat | -11 -10 -10 -9 -9 -------- Run | Yrd Mat Min Mat Sto Hostile Shots Fired 188 | . 25 33 66 64 Missed 47 | . 4 10 19 14 Damage Taken 1596 | . 174 210 538 674 Core 522 | . 51 58 158 255 Absorbed by Shields . | . . . . . Core Remaining (%) 78 | 100 . 56 . . Volleys Fired 74 | 4 1 8 26 35 Largest 2 | 2 1 2 2 2 Hottest 100 | 60 100 60 50 50 Shots Fired 142 | 8 1 16 52 65 Gun 141 | 8 . 16 52 65 Cannon . | . . . . . Launcher . | . . . . . Special 1 | . 1 . . . Kinetic 129 | 4 . 8 52 65 Thermal 13 | 4 1 8 . . Explosive . | . . . . . Electromagnetic . | . . . . . Robot Hit Streak 16 | 3 . 7 7 16 Robot Miss Streak 4 | 1 . 2 3 4 Penetration Max . | . . . . . Secondary Targets 4 | . . 2 1 1 Max Gunslinging Chain 1 | . . 1 1 1 Shots Hit Robots 96 | 6 . 12 35 43 Core Hits 34 | 3 . 6 10 15 Critical Kills 1 | . . . . 1 Critical Parts Destroyed 2 | . . . 1 1 Critical Strikes 3 | . . . 1 2 Destroy 2 | . . . . 2 Smash 1 | . . . 1 . Melee Attacks 11 | . . . 11 . Impact 11 | . . . 11 . Slashing . | . . . . . Piercing . | . . . . . Sneak Attacks . | . . . . . Combat Hostiles . | . . . . . Follow-up Attacks . | . . . . . Damage Inflicted 1703 | 73 . 142 718 770 Guns 1535 | 73 . 142 550 770 Cannons . | . . . . . Explosions . | . . . . . Melee 168 | . . . 168 . Ramming . | . . . . . Kinetic 1420 | 27 . 73 550 770 Thermal 115 | 46 . 69 . . Explosive . | . . . . . Electromagnetic . | . . . . . Impact 168 | . . . 168 . Slashing . | . . . . . Piercing . | . . . . . Highest Corruption . | . . . . . Average Corruption . | . . . . . Corruption Purged . | . . . . . Corruption Blocked . | . . . . . Overload Shots . | . . . . . Overflow Damage 69 | . . . 69 . Projectiles . | . . . . . Explosions . | . . . . . Melee 69 | . . . 69 . Knockbacks 1 | . . . 1 . Impact 1 | . . . 1 . Kinetic . | . . . . . Secondary . | . . . . . Self-Inflicted Damage . | . . . . . Shots . | . . . . . Rammed . | . . . . . Targets Rammed . | . . . . . Kicked . | . . . . . Crushed . | . . . . . Highest Temperature 64 | . 20 . 27 64 Average Temperature 12 | . 10 . 8 16 Received Heat Transfer 459 | . . . 138 321 Siege Activations . | . . . . . Robots Corrupted . | . . . . . Combat Hostiles . | . . . . . Parts Fried 2 | . . . 2 . Impact Corruptions 4 | . . . 4 . Robots Melted . | . . . . . Combat Hostiles . | . . . . . Parts Melted . | . . . . . Heat Transferred 250 | 100 . 150 . . Parts Sabotaged . | . . . . . Parts Stolen . | . . . . . Parts Stripped . | . . . . . Power Chain Reactions . | . . . . . Alert | -11 -10 -10 -9 -9 ------- Run | Yrd Mat Min Mat Sto Peak Influence 368 | 10 22 159 273 368 Initial 115 | . 6 4 61 115 Average 118 | 5 8 125 146 232 Maximum Alert Level 1 | . . . 1 1 Low Security (%) 78 | 100 100 100 78 36 Level 1 21 | . . . 21 63 Level 2 . | . . . . . Level 3 . | . . . . . Level 4 . | . . . . . Level 5 . | . . . . . High Security . | . . . . . Max Security . | . . . . . Squads Dispatched 3 | . . . 1 2 Investigation . | . . . . . Extermination . | . . . . . Reinforcement 3 | . . . 1 2 Assault . | . . . . . Garrison . | . . . . . Intercept . | . . . . . Searches Triggered . | . . . . . Construction Impeded . | . . . . . Haulers Reinforced . | . . . . . Active Scanning Responses . | . . . . . Cargo Convoy Interrupts . | . . . . . Stealth | -11 -10 -10 -9 -9 --------- Run | Yrd Mat Min Mat Sto Distress Signals 2 | . 1 . . 1 Communications Jammed . | . . . . . Distress Signals . | . . . . . Times Spotted 48 | . 4 15 10 19 Peak Tracking Total 13 | . 4 13 3 9 Tactical Retreats 2 | . . . 1 1 Traps | -11 -10 -10 -9 -9 ------- Run | Yrd Mat Min Mat Sto Traps Triggered 1 | . 1 . . . Indirectly . | . . . . . Trap Hack Attempts . | . . . . . Triggered . | . . . . . Disarmed . | . . . . . Reprogrammed . | . . . . . Reused . | . . . . . Traps Extracted . | . . . . . Installed . | . . . . . Triggered . | . . . . . Machines | -11 -10 -10 -9 -9 ---------- Run | Yrd Mat Min Mat Sto Machines Disabled . | . . . . . Max in Single Turn . | . . . . . Machines Repaired . | . . . . . Machines Dismantled . | . . . . . Machines Sabotaged . | . . . . . Overloaded Fab Kills . | . . . . . Hacking | -11 -10 -10 -9 -9 --------- Run | Yrd Mat Min Mat Sto Machines Accessed 4 | . . . 2 2 Terminals 4 | . . . 2 2 Fabricators . | . . . . . Repair Stations . | . . . . . Recycling Units . | . . . . . Scanalyzers . | . . . . . Garrison Access . | . . . . . Total Hacks 7 | . . . 4 3 Successful . | . . . . . Failed 7 | . . . 4 3 Catastrophic 5 | . . . 2 3 Database Lockouts . | . . . . . Manual 7 | . . . 4 3 Terminals 7 | . . . 4 3 Fabricators . | . . . . . Repair Stations . | . . . . . Recycling Units . | . . . . . Scanalyzers . | . . . . . Garrison Access . | . . . . . Terminal Hacks . | . . . . . Fabricator Hacks . | . . . . . Repair Station Hacks . | . . . . . Recycling Unit Hacks . | . . . . . Scanalyzer . | . . . . . Garrison Access Hacks . | . . . . . Unauthorized Hacks . | . . . . . Terminals . | . . . . . Fabricators . | . . . . . Repair Stations . | . . . . . Recycling Units . | . . . . . Scanalyzers . | . . . . . Garrison Access . | . . . . . Data Cores Recovered 1 | . . . . 1 Used . | . . . . . Hacking Detections 4 | . . . 2 2 Full Trace Events . | . . . . . Feedback Events . | . . . . . Feedback Blocked . | . . . . . Robot Schematics Acquired . | . . . . . Robots Built . | . . . . . Authchips . | . . . . . Time . | . . . . . Total Robot Build Rating . | . . . . . Part Schematics Acquired . | . . . . . Parts Built . | . . . . . Authchips . | . . . . . Time . | . . . . . Total Part Build Rating . | . . . . . Parts Repaired . | . . . . . Time . | . . . . . Parts Recycled . | . . . . . Recycled Matter . | . . . . . Retrieved Matter . | . . . . . Retrieved Components . | . . . . . Parts Scanalyzed . | . . . . . Part Schematics Acquired . | . . . . . Parts Damaged . | . . . . . Bothacking | -11 -10 -10 -9 -9 ------------ Run | Yrd Mat Min Mat Sto Used RIF Installer . | . . . . . Robots Hacked . | . . . . . Non-combat . | . . . . . Combat . | . . . . . Robot Hacks Applied . | . . . . . Relay Couplers Released . | . . . . . Fabnet Peak Effective % . | . . . . . Robots Rewired . | . . . . . Allies Hacked . | . . . . . Hacks Repelled . | . . . . . Allies | -11 -10 -10 -9 -9 -------- Run | Yrd Mat Min Mat Sto Total Allies . | . . . . . Largest Group . | . . . . . Highest-Rated Group . | . . . . . Highest-Rated Ally . | . . . . . Total Orders . | . . . . . Ally Attacks . | . . . . . Total Damage . | . . . . . Kills . | . . . . . Allies Corrupted . | . . . . . Allies Melted . | . . . . . Intel | -11 -10 -10 -9 -9 ------- Run | Yrd Mat Min Mat Sto Robot Analysis Total . | . . . . . Derelict Logs Recovered . | . . . . . Drone Launches . | . . . . . Drone Recoveries . | . . . . . Exploration | -11 -10 -10 -9 -9 ------------- Run | Yrd Mat Min Mat Sto Turns Passed 896 | 151 133 120 291 201 Spaces Moved 606 | 79 77 66 229 155 Core 14 | 14 . . . . Treads 196 | 65 77 48 . 6 Legs . | . . . . . Wheels . | . . . . . Hover 396 | . . 18 229 149 Flight . | . . . . . Fastest Speed 50 | 50 160 80 58 52 Average Speed 101 | 157 160 138 77 65 Slowest Speed 250 | 250 160 160 80 160 Overloaded Moves . | . . . . . Propulsion Burnouts . | . . . . . Robots Hopped . | . . . . . Cave-ins Triggered . | . . . . . Exploration Rate (%) 22 | 5 19 16 21 50 Regions Visited 4 Branch Regions 2 Pre-discovered Areas . | . . . . . Known Exits Taken 1 | . . . 1 . Unknown Exits Taken 3 | 1 1 1 . . Scrap Searched . | . . . . . Spaces Dug 1 | . 1 . . . Terrain Destroyed 1 | . 1 . . . Melee . | . . . . . Projectile 1 | . 1 . . . AOE . | . . . . . Terrain Rammed . | . . . . . Walls Destroyed . | . . . . . Machines Disabled . | . . . . . Actions | -11 -10 -10 -9 -9 --------- Run | Yrd Mat Min Mat Sto Total 743 | 95 82 80 284 202 Wait 2 | . . . 1 1 Move 602 | 78 76 65 228 155 Hop . | . . . . . Pick Up 14 | 7 1 . 4 2 Fast Attach 20 | 6 3 1 7 3 Attach 5 | . . 1 1 3 Detach 1 | . . . . 1 Swap 3 | . 1 . 2 . Drop 12 | . . 5 5 2 Fire 74 | 4 1 8 26 35 Melee 10 | . . . 10 . Ram . | . . . . . Kick . | . . . . . Crush . | . . . . . Escape Stasis . | . . . . . Rewire . | . . . . . Trap . | . . . . . Miscellaneous . | . . . . . Route ------- -11/Scrapyard -10/Materials -10/Mines -9/Materials -9/Storage History --------- Turn | Location | Event 18 | -11/Scrapyard | Discovered new exit (range 15) 152 | -11/Scrapyard | Entered Materials 261 | -10/Materials | Discovered new exit (range 15) 285 | -10/Materials | Entered Mines 288 | -10/Mines | Met a Derelict bent on vengeance 306 | -10/Mines | Build established: Mutant 353 | -10/Mines | Assembled infested the area 395 | -10/Mines | Discovered new exit (range 10) 405 | -10/Mines | Entered Materials 405 | -9/Materials | Evolved 2 slots: Propulsion x1, Utility x1 684 | -9/Materials | Discovered new exit (range 7) 696 | -9/Materials | Identified exit to Storage 696 | -9/Materials | Entered Storage 784 | -9/Storage | Core integrity fell below 50% 879 | -9/Storage | Core integrity fell below 20% 897 | -9/Storage | Destroyed by G-47 Trooper with Particle Gun Last Messages --------------- 00858_ Acquired 10 matter. 00859_ G-34 Mercenary destroyed. 00860_ K-01 Serf collects debris. 00864_ Y-45 Defender destroyed. 00865_ K-01 Serf collects debris. 00872_ Critical hit (Burn: +37). 00873_ K-01 Serf collects debris. 00873_ Minigun destroyed. 00874_ K-01 Serf collects debris. 00877_ Hover Unit destroyed. 00877_ K-01 Serf collects debris. 00880_ Y-45 Defender destroyed. 00880_ K-01 Serf collects debris. 00881_ U-05 Engineer builds a Door. 00883_ K-01 Serf collects debris. 00883_ Acquired 49 matter. 00886_ Acquired Lgt. Treads. 00887_ Hover Unit destroyed. 00889_ K-01 Serf collects debris. 00891_ Minigun destroyed. Map ----- +----------------------------------------------------+ | ????# ####### #???#^ ^ ##????????? | | ????# #########????????# #??## ##????????? | | ???????????????????????# #??#T """ ##????????? | | ???????????????????????# #??## """ ##????????? | | ???????????????????#####+##### """ ##????????? | | ???????????????????# + ^ ##????????? | | ???????????????????# """ """ # [ = ##????????? | | ???????????????????# """ """ # """ ## ???????? | | ??????????????????#T """ """ / """ ## ???????? | | ??????????????????## # """ # ???????? | | ???????????????????# # # ???????? | | ???????????????????# # + ?????? | | ???????????????????# # # ????? | | ???????????????????### ####### ** # ??? ???? | | ?????????????????????##?########### =*!# | | ????????????????????????##] ##%*]% ########## | | ????????????????????????## [ ##=%!*!## | | ????????????????????????## ##!! = ## | | ????????????????????????## + | + | | ????????????????????????## #### # | | ????????????????????????## ! #### #####+### | | ?????????????????######### [%! #### ### | | ??????????## ########### !=%== ###### ### | | ??????????####+#### #####+#### ### | | ???????? %g [ g g # | | ???????? @ *!! u T + | | ???????? u a # | | ??????????######### ########## ### # | | ?????????? #########+##############+##### # | | ????????????????? """????#### + # | | ???????????????## ??????????##"" """ #### | | ???????????????## ???????????##"Y """ #### | | ???????????????## ???????????##"" """ #### | | ?????????????????????????????#### #### | | ?????????????????????????????#### """ #### | | ???????????????????????????????## """ #### | | ???????????????????????????????## """ ####### | | ???????????????????????????????## # # | | ???????????????????????????????######### # ????? | | ???????????????????????????????########### ????? | | ??????????????????????????????????????#### ????? | | ???????????????????????????????????????????????? | | ???????????????????????????????????????????????? | | ???????????????????????????????????????????????? | | ?????????????????????????????????????????????????? | | ?????????????????????????????????????????????????? | | ?????????????????????????????????????????????????? | | ?????????????????????????????????????????????????? | | ?????????????????????????????????????????????????? | | ?????????????????????????????????????????????????? | +----------------------------------------------------+ Best States ------------- Heat Dissipation 28 Energy Generation 14 Energy Capacity 280 Matter Stores 300 Matter Capacity 300 Sight Range 18 Terrain Scan Density 10 ECM Strength 1 Evasion (%) 54 Recoil Reduction 2 Item Schematics ----------------- None Robot Schematics ------------------ None Fabricated ------------ Nothing Alien Tech Used ----------------- None Achievements -------------- None Challenges ------------ None Game ------ Seed NavigationGravitonMantle Manual? 0 Play Time 00:14:34 Cumulative 26.8 hours Start 2024.04.14 @ 19:19:46 End 2024.04.14 @ 19:33:05 Sessions 1 Manual Loads 0 Difficulty Rogue Special Mode None Game No. 56 Rogue 51 Adventurer 5 Explorer 0 Win Type - Total 0 Types 0/0/0/0/0/0/0/0/0 Lore% 9 Gallery% 37 Achievement% 28 Wizard Run 0 Options --------- Layout 0 ASCII 0 Keyboard 0 Movement Mouse Keybinds 0 Fullscreen 2 Font 24/Smallcaps Map View 38x25 Zoom Use 75% Tactical HUD 1 Map Filters NONE Filters NONE Steam 1 RUN: f1c57d32-8de9-4d83-b9b4-e5c8897f7e9d